bitfinex-derivatives/quotes_BTCF0:USTF0_20250218
["timestamp","ask_amount","ask_price","bid_price","bid_amount"]
[1739840942725,0.2082102,96054.0,96045.0,0.3608]
[1739840942925,0.0587,96053.0,96045.0,0.3608]
[1739840943321,0.0542,96052.0,96045.0,0.3608]
[1739840943623,0.10984,96051.0,96045.0,0.3608]
[1739840943927,0.2082207,96049.0,96045.0,0.3608]
[1739840944816,0.2082248,96047.0,96045.0,0.3608]
[1739840945223,0.2082248,96047.0,96045.0,0.28913385]
[1739840947326,0.2112248,96047.0,96045.0,0.28913385]
[1739840947541,0.003,96047.0,96045.0,0.28913385]
[1739840948725,0.003,96047.0,96038.0,0.00015611]
[1739840948926,0.3608,96039.0,96038.0,0.00015611]
[1739840949130,0.3608,96039.0,96024.0,0.00156221]
[1739840949427,0.09139486,96034.0,96024.0,0.00156221]
[1739840949623,0.09139486,96034.0,96025.0,0.1103]
[1739840949924,0.3608,96030.0,96025.0,0.1103]
[1739840950730,0.09139486,96034.0,96025.0,0.1103]
[1739840951226,0.3608,96028.0,96025.0,0.1103]
[1739840951433,0.09139486,96034.0,96025.0,0.1103]
[1739840957423,0.09139486,96034.0,96028.0,0.3608]
[1739840957818,0.09139486,96034.0,96025.0,0.1662]
[1739840959238,0.09139486,96034.0,96028.0,0.3608]
[1739840960532,0.09139486,96034.0,96025.0,0.1662]
[1739840961328,0.09139486,96034.0,96025.0,0.3744695]
[1739840961839,0.09139486,96034.0,96025.0,0.1682]
[1739840962032,0.0765336,96033.0,96025.0,0.1682]
[1739840963334,0.1873336,96033.0,96025.0,0.1123]
[1739840964134,0.1873336,96033.0,96025.0,0.1113]
[1739840964627,0.1873336,96033.0,96025.0,0.1103]
[1739840965237,0.0765336,96032.0,96025.0,0.1103]
[1739840968241,0.0765336,96031.0,96025.0,0.1103]
[1739840970338,0.0735336,96031.0,96025.0,0.1103]
[1739840971041,0.3117658,96031.0,96025.0,0.1103]
[1739840973041,0.5200257,96031.0,96025.0,0.1103]
[1739840974342,0.2082612,96030.0,96025.0,0.054]
[1739840977744,0.3117658,96031.0,96025.0,0.054]
[1739840978646,0.07653849,96029.0,96025.0,0.054]
[1739840979946,0.28480199,96029.0,96025.0,0.054]
[1739840980247,0.2082654,96028.0,96025.0,0.054]
[1739840980442,0.25293437,96028.0,96025.0,0.054]
[1739840981448,0.25293437,96028.0,96023.0,0.34468327]
[1739840983136,0.07653849,96027.0,96023.0,0.34468327]
[1739840984646,0.07653849,96027.0,96024.0,0.0568]
[1739840986247,0.07653849,96026.0,96024.0,0.0578]
[1739840989349,0.04466897,96028.0,96024.0,0.0578]
[1739840989350,0.07653849,96025.0,96024.0,0.0578]
[1739840989748,0.07653849,96025.0,96024.0,0.001]
[1739840990547,0.2082912,96016.0,96005.0,0.1761]
[1739840990746,0.26629486,96015.0,96005.0,0.1761]
[1739840991046,0.3608,96014.0,96002.0,0.3608]
[1739840991348,0.11028,96013.0,96002.0,0.3608]
[1739840991533,0.11028,96013.0,96003.0,0.0595]
[1739840991850,0.3608,96014.0,96003.0,0.1737]
[1739840992843,0.90828,96013.0,96003.0,0.1737]
[1739840993738,1.1165791,96013.0,96003.0,0.1737]
[1739840994352,1.1185791,96013.0,96003.0,0.1737]
[1739840994748,0.2083014,96012.0,96003.0,0.1737]
[1739840995452,0.38077529,96012.0,96003.0,0.1737]
[1739840997658,0.38277529,96012.0,96003.0,0.1737]
[1739840997957,0.17447389,96012.0,96003.0,0.1737]
[1739840998144,0.2083051,96010.0,96003.0,0.1737]
[1739840999346,0.90836,96011.0,96003.0,0.1737]
[1739840999647,0.98489849,96011.0,96003.0,0.1737]
[1739841000760,0.002,96010.0,96003.0,0.1737]
[1739841001949,1.19512169,96011.0,96003.0,0.1737]
[1739841002146,0.2083168,96004.0,96003.0,0.1159]
[1739841002456,0.2083202,96003.0,95998.0,0.0001562]
[1739841002650,0.2632202,96003.0,95998.0,0.0001562]
[1739841003048,0.30791979,96003.0,95998.0,0.0001562]
[1739841003253,0.2083258,96000.0,95998.0,0.0001562]
[1739841004261,0.1145,95999.0,95998.0,0.0001562]
[1739841004452,0.15836459,96000.0,95998.0,0.0001562]
[1739841004755,0.002,96000.0,95998.0,0.0001562]
[1739841005260,0.09959959,96003.0,95998.0,0.0001562]
[1739841005444,0.002,95999.0,95998.0,0.0001562]
[1739841007252,0.07653849,95999.0,95998.0,0.0001562]
[1739841007855,0.07653849,95999.0,95998.0,0.0061562]
[1739841008056,0.07653849,95999.0,95998.0,0.04987627]
[1739841008763,0.07653849,95999.0,95998.0,0.04887627]
[1739841008962,0.07653849,95999.0,95998.0,0.25720607]
[1739841009259,0.1920604,96001.0,96000.0,0.2083255]
[1739841009563,0.1920604,96001.0,96000.0,0.7216]
[1739841009856,0.208306,96009.0,96000.0,0.3608]
[1739841010259,0.2083151,96005.0,96000.0,0.3608]
[1739841010458,0.54813026,96010.0,96000.0,0.3608]
[1739841010658,0.2083193,96003.0,96000.0,0.3608]
[1739841010964,0.2083193,96003.0,96000.0,0.3658]
[1739841011162,0.54813026,96010.0,96000.0,0.3658]
[1739841011547,0.54813026,96010.0,96000.0,0.3618]
[1739841012047,0.45219486,96010.0,96000.0,0.3608]
[1739841012247,0.45219486,96010.0,96000.0,0.3638]
[1739841012662,0.2083105,96007.0,96000.0,0.3638]
[1739841012861,0.45219486,96010.0,96000.0,0.3638]
[1739841013649,0.45219486,96010.0,96000.0,0.3618]
[1739841014162,0.45219486,96010.0,96000.0,0.3608]
[1739841014352,0.45219486,96010.0,96000.0,0.3628]
[1739841014755,0.45219486,96010.0,96000.0,0.3608]
[1739841014960,0.09139486,96010.0,96000.0,0.3618]
[1739841015463,0.09139486,96010.0,96000.0,0.3628]
[1739841016956,0.09139486,96010.0,96000.0,0.3618]
[1739841018663,0.28485657,96009.0,96000.0,0.3618]
[1739841018969,0.07655057,96009.0,96000.0,0.3618]
[1739841021669,0.07655057,96009.0,96000.0,0.3608]
[1739841021870,0.07655057,96009.0,96000.0,0.3628]
[1739841022467,0.34299673,96013.0,96008.0,0.3608]
[1739841022773,0.34299673,96013.0,96010.0,0.208302]
[1739841023666,0.34299673,96013.0,96009.0,0.1648]
[1739841023866,0.34499673,96013.0,96009.0,0.1648]
[1739841026067,0.07654535,96012.0,96009.0,0.1648]
[1739841027270,0.07754535,96012.0,96009.0,0.1648]
[1739841027470,0.07754535,96012.0,96010.0,0.2083038]
[1739841028368,0.34299673,96013.0,96012.0,0.2082994]
[1739841028570,0.0959444,96016.0,96015.0,0.2082929]
[1739841028772,0.00156248,96030.0,96012.0,0.3608]
[1739841028773,0.00156248,96030.0,96018.0,0.2082865]
[1739841029769,0.00156248,96030.0,96012.0,0.3608]
[1739841030089,0.00156248,96030.0,96029.0,0.2082626]
[1739841031171,0.00356248,96030.0,96029.0,0.2082626]
[1739841031675,0.00356248,96030.0,96029.0,0.2633626]
[1739841031972,0.00356248,96030.0,96029.0,0.3707626]
[1739841032777,0.003,96030.0,96029.0,0.3717626]
[1739841033276,0.001,96030.0,96029.0,0.407656]
[1739841034360,0.001,96030.0,96029.0,0.768456]
[1739841034574,0.055,96041.0,96029.0,0.5601934]
[1739841034874,0.055,96041.0,96040.0,0.5690387]
[1739841035374,0.055,96041.0,96040.0,0.56067567]
[1739841036473,0.056,96041.0,96040.0,0.56067567]
[1739841037069,0.058,96041.0,96040.0,0.56067567]
[1739841038380,0.003,96041.0,96040.0,0.56067567]
[1739841038881,0.03720521,96046.0,96040.0,0.56167567]
[1739841039174,0.03720521,96046.0,96041.0,0.2082343]
[1739841042272,0.03720521,96046.0,96041.0,0.2092343]
[1739841042882,0.0001562,96050.0,96049.0,0.208219]
[1739841043176,0.03649471,96050.0,96049.0,0.569019]
[1739841043483,0.0001562,96050.0,96049.0,0.60561725]
[1739841043774,0.0001562,96050.0,96049.0,0.569019]
[1739841043980,0.0011562,96050.0,96049.0,0.569019]
[1739841045685,0.0001562,96050.0,96049.0,0.569019]
[1739841045882,0.0001562,96050.0,96049.0,0.574019]
[1739841046984,0.0001562,96050.0,96049.0,0.569019]
[1739841047181,0.0001562,96050.0,96049.0,0.573019]
[1739841049782,0.0001562,96050.0,96049.0,0.569019]
[1739841049978,0.0001562,96050.0,96049.0,0.573019]
[1739841050388,0.0001562,96050.0,96049.0,0.569019]
[1739841050675,0.0001562,96050.0,96049.0,0.573019]
[1739841051089,0.0001562,96050.0,96049.0,0.3648]
[1739841052574,0.0001562,96050.0,96049.0,0.3638]
[1739841053186,0.0001562,96050.0,96049.0,0.3608]
[1739841053383,0.0001562,96050.0,96049.0,0.3638]
[1739841054887,0.0001562,96050.0,96049.0,0.3608]
[1739841055090,0.0001562,96050.0,96049.0,0.3638]
[1739841055584,0.0001562,96050.0,96049.0,0.3608]
[1739841055885,0.0001562,96050.0,96049.0,0.3648]
[1739841057979,0.00156172,96076.0,96049.0,0.3648]
[1739841058188,0.00156172,96076.0,96065.0,0.3608]
[1739841059591,0.03819118,96076.0,96065.0,0.5689827]
[1739841059782,0.00156172,96076.0,96065.0,0.5689827]
[1739841060196,0.00156172,96076.0,96065.0,0.3608]
[1739841060493,0.00156172,96076.0,96067.0,0.2081781]
[1739841061285,0.00156172,96076.0,96072.0,0.2081672]
[1739841061684,0.03932275,96076.0,96073.0,0.3608]
[1739841062086,0.2081678,96073.0,96061.0,0.0001562]
[1739841062288,0.45219486,96071.0,96061.0,0.0001562]
[1739841062491,0.2081757,96069.0,96055.0,0.3608]
[1739841062796,0.09139486,96065.0,96055.0,0.3608]
[1739841062989,0.3608,96063.0,96055.0,0.3608]
[1739841063296,0.10968,96062.0,96055.0,0.3608]
[1739841065395,0.10968,96062.0,96055.0,0.3638]
[1739841065892,0.10968,96062.0,96055.0,0.3608]
[1739841066686,0.2082003,96058.0,96049.0,0.0001562]
[1739841067096,0.09139486,96059.0,96049.0,0.0001562]
[1739841068785,0.29959246,96059.0,96049.0,0.0001562]
[1739841069586,0.29959246,96059.0,96049.0,0.0011562]
[1739841070098,0.3608,96063.0,96052.0,0.2082111]
[1739841071393,0.3608,96063.0,96053.0,0.3608]
[1739841071909,0.3608,96063.0,96061.0,0.2081914]
[1739841073503,0.3608,96063.0,96053.0,0.3648]
[1739841073701,0.22198106,96067.0,96053.0,0.3648]
[1739841073899,0.11206106,96067.0,96056.0,0.2082028]
[1739841074197,0.11206106,96067.0,96059.0,0.2081957]
[1739841074896,0.11206106,96067.0,96061.0,0.002]
[1739841075599,0.11206106,96067.0,96059.0,0.002]
[1739841075999,0.11206106,96067.0,96061.0,0.002]
[1739841076503,0.11206106,96067.0,96058.0,0.2081995]
[1739841076504,0.09139486,96071.0,96058.0,0.2081995]
[1739841076695,0.09139486,96071.0,96061.0,0.001]
[1739841076897,0.09139486,96071.0,96063.0,0.2081876]
[1739841077093,0.09139486,96071.0,96065.0,0.2081844]
[1739841077295,0.03932275,96076.0,96074.0,0.2081641]
[1739841077507,0.75816843,96083.0,96074.0,0.2081641]
[1739841078105,0.055,96082.0,96074.0,0.2081641]
[1739841079207,0.055,96082.0,96068.0,0.0001562]
[1739841079208,0.057,96082.0,96068.0,0.0001562]
[1739841079406,0.09139486,96080.0,96068.0,0.0001562]
[1739841079607,0.09139486,96080.0,96069.0,0.2081738]
[1739841080306,0.0577,96079.0,96069.0,0.2081738]
[1739841080506,0.0577,96079.0,96068.0,0.0001562]
[1739841080703,0.3608,96076.0,96068.0,0.0001562]
[1739841080912,0.055,96075.0,96068.0,0.0001562]
[1739841081505,0.0572,96074.0,96068.0,0.0001562]
[1739841081905,0.0577,96073.0,96068.0,0.0001562]
[1739841083807,0.2081739,96070.0,96068.0,0.0001562]
[1739841084112,0.0534,96069.0,96068.0,0.0001562]
[1739841084914,0.0534,96069.0,96052.0,0.3608]
[1739841085098,0.3608,96054.0,96038.0,0.2082411]
[1739841085304,0.09139486,96052.0,96038.0,0.2082411]
[1739841085613,0.29960786,96052.0,96037.0,0.0548]
[1739841086111,0.29960786,96052.0,96037.0,0.0549562]
[1739841088098,0.12392837,96052.0,96037.0,0.0549562]
[1739841088305,0.03253351,96052.0,96045.0,0.2082262]
[1739841088504,0.1709,96053.0,96045.0,0.2082262]
[1739841089312,0.1709,96053.0,96043.0,0.0565]
[1739841089515,0.1709,96053.0,96050.0,0.2082153]
[1739841090507,0.20213433,96053.0,96050.0,0.2082153]
[1739841092205,0.20213433,96053.0,96050.0,0.2112153]
[1739841093507,0.20213433,96053.0,96051.0,0.2082132]
[1739841093701,0.20213433,96053.0,96051.0,0.2638132]
[1739841093906,0.20213433,96053.0,96051.0,0.3214132]
[1739841094110,0.14373433,96053.0,96051.0,0.3214132]
[1739841094508,0.1125,96053.0,96051.0,0.3214132]
[1739841094716,0.0541,96053.0,96051.0,0.3214132]
[1739841095210,0.0541,96053.0,96051.0,0.3234132]
[1739841096109,0.0541,96053.0,96051.0,0.2658132]
[1739841096412,0.0584,96052.0,96051.0,0.002]
[1739841098415,0.0541,96053.0,96051.0,0.2102147]
[1739841098615,0.0541,96053.0,96052.0,0.0549]
[1739841100225,0.0541,96053.0,96052.0,0.1113]
[1739841100822,0.0541,96053.0,96052.0,0.0549]
[1739841101215,0.0541,96053.0,96052.0,0.0569]
[1739841101609,0.0541,96053.0,96052.0,0.0549]
[1739841101811,0.0541,96053.0,96052.0,0.0569]
[1739841102225,0.0541,96053.0,96052.0,0.4177]
[1739841102412,0.0541,96053.0,96052.0,0.4737]
[1739841103214,0.0001562,96057.0,96052.0,0.4737]
[1739841103409,0.0001562,96057.0,96056.0,0.2082039]
[1739841104821,0.0001562,96057.0,96056.0,0.2122039]
[1739841105622,0.0001562,96057.0,96056.0,0.2112039]
[1739841107629,0.0001562,96057.0,96056.0,0.2102039]
[1739841110632,0.0001562,96057.0,96056.0,0.2082039]
[1739841110831,0.0001562,96057.0,96056.0,0.2102039]
[1739841111226,0.0001562,96057.0,96056.0,0.2082039]
[1739841111428,0.0001562,96057.0,96056.0,0.2102039]
[1739841112132,0.09139486,96070.0,96056.0,0.2102039]
[1739841112133,0.3608,96138.0,96098.0,0.208111]
[1739841112334,0.1166,96117.0,96099.0,0.3608]
[1739841112529,0.03127354,96116.0,96099.0,0.3608]
[1739841113338,0.00015584,96109.0,96099.0,0.3608]
[1739841114431,0.0598,96117.0,96099.0,0.3618]
[1739841114636,0.0598,96127.0,96126.0,0.2080523]
[1739841114835,0.0598,96127.0,96126.0,0.5688523]
[1739841117737,0.0598,96127.0,96126.0,0.5698523]
[1739841118534,0.0598,96127.0,96126.0,0.001]
[1739841118734,0.0598,96127.0,96117.0,0.00015609]
[1739841120540,0.0598,96127.0,96126.0,0.3608]
[1739841120740,0.17144,96127.0,96126.0,0.3608]
[1739841121040,0.17244,96127.0,96126.0,0.3608]
[1739841121438,0.2080545,96125.0,96117.0,0.00015609]
[1739841121835,0.001,96127.0,96124.0,0.3608]
[1739841122035,0.001,96127.0,96126.0,0.001]
[1739841122640,0.0589,96143.0,96127.0,0.2080496]
[1739841122941,0.09075306,96143.0,96139.0,0.3608]
[1739841125133,0.09075306,96143.0,96139.0,0.3618]
[1739841125339,0.09175306,96143.0,96139.0,0.3618]
[1739841126740,0.09175306,96143.0,96141.0,0.2080184]
[1739841126741,0.0599,96143.0,96141.0,0.2080184]
[1739841127243,0.001,96143.0,96141.0,0.5688184]
[1739841127839,0.90748,96154.0,96144.0,0.2080117]
[1739841128149,0.90748,96154.0,96151.0,0.5687958]
[1739841128538,0.1096,96159.0,96153.0,0.2079931]
[1739841129050,0.0566,96169.0,96151.0,0.3608]
[1739841129250,0.11228,96168.0,96160.0,0.3608]
[1739841129445,0.11228,96168.0,96163.0,0.2079717]
[1739841129643,0.0566,96169.0,96163.0,0.2079717]
[1739841130040,0.0566,96169.0,96168.0,0.3608]
[1739841131153,0.08836063,96169.0,96168.0,0.3608]
[1739841131547,0.08936063,96169.0,96168.0,0.3618]
[1739841136757,0.29731973,96169.0,96168.0,0.001]
[1739841137648,0.08936063,96169.0,96161.0,0.3608]
[1739841138050,0.08936063,96169.0,96165.0,0.2079656]
[1739841138447,0.08936063,96169.0,96161.0,0.72216]
[1739841138758,0.08936063,96169.0,96161.0,0.7216]
[1739841139752,0.08836063,96169.0,96161.0,0.7216]
[1739841142162,0.03176063,96169.0,96161.0,0.7216]
[1739841142462,0.1127,96168.0,96161.0,0.7216]
[1739841143067,0.2079724,96163.0,96161.0,0.7216]
[1739841143555,0.1127,96168.0,96161.0,0.7216]
[1739841143961,0.1137,96168.0,96161.0,0.7216]
[1739841144362,0.001,96163.0,96161.0,0.7216]
[1739841146163,0.22594,96168.0,96161.0,0.7216]
[1739841146366,0.1137,96168.0,96161.0,0.7216]
[1739841146569,0.1127,96168.0,96161.0,0.7216]
[1739841152972,0.2079657,96167.0,96161.0,0.7216]
[1739841153873,4.916e-05,96165.0,96159.0,0.000156]
[1739841154171,0.2080023,96150.0,96148.0,0.00156008]
[1739841154364,0.1081,96149.0,96148.0,0.00156008]
[1739841155964,0.2080046,96148.0,96145.0,0.3608]
[1739841157469,0.2080089,96146.0,96145.0,0.3608]
[1739841158571,0.001,96148.0,96139.0,0.000156]
[1739841158776,0.2080143,96144.0,96143.0,0.3608]
[1739841160262,0.2090143,96144.0,96143.0,0.3608]
[1739841160466,0.2090143,96144.0,96123.0,0.18740235]
[1739841160467,0.001,96144.0,96123.0,0.18740235]
[1739841160668,0.2080512,96127.0,96123.0,0.18740235]
[1739841160970,0.2080544,96125.0,96112.0,0.3608]
[1739841161279,0.1661,96126.0,96112.0,0.3608]
[1739841161778,0.1661,96126.0,96113.0,0.000156]
[1739841162668,0.2080645,96121.0,96113.0,0.000156]
[1739841163474,0.2340644,96121.0,96113.0,0.000156]
[1739841163976,0.2360644,96121.0,96113.0,0.000156]
[1739841167673,0.2080782,96114.0,96113.0,0.000156]
[1739841167870,0.2080782,96114.0,96112.0,0.35328094]
[1739841168183,0.2081042,96102.0,96101.0,0.3608]
[1739841170980,0.2111042,96102.0,96101.0,0.3608]
[1739841171182,0.208128,96091.0,96090.0,0.3608]
[1739841171375,0.208128,96091.0,96074.0,1.50056]
[1739841171376,0.2081342,96089.0,96074.0,1.50056]
[1739841171580,0.09139486,96084.0,96074.0,1.5]
[1739841172177,0.09139486,96084.0,96071.0,0.3774712]
[1739841172483,0.20829028,96089.0,96078.0,0.3608]
[1739841172979,0.00015608,96089.0,96078.0,0.3608]
[1739841173183,0.2081445,96084.0,96078.0,0.3608]
[1739841174075,0.23305386,96084.0,96078.0,0.3608]
[1739841175374,0.23305386,96084.0,96078.0,0.3638]
[1739841175571,0.02490936,96084.0,96078.0,0.3638]
[1739841175789,0.0569,96088.0,96078.0,0.3638]
[1739841176180,0.08271144,96088.0,96078.0,0.3638]
[1739841176581,0.29084744,96088.0,96078.0,0.3638]
[1739841176883,0.2081376,96087.0,96078.0,0.3638]
[1739841177082,0.2081376,96087.0,96078.0,0.3608]
[1739841177386,0.2081376,96087.0,96078.0,0.3638]
[1739841178086,0.2081424,96085.0,96078.0,0.3638]
[1739841178489,0.02581144,96088.0,96078.0,0.3638]
[1739841178681,0.00015608,96089.0,96078.0,0.3638]
[1739841180081,0.20828938,96089.0,96078.0,0.3638]
[1739841180688,0.00015608,96089.0,96087.0,0.3608]
[1739841180993,0.00015608,96089.0,96088.0,0.3748345]
[1739841181181,0.00015608,96089.0,96088.0,1.8748345]
[1739841181580,0.00015608,96089.0,96088.0,0.3748345]
[1739841181780,0.9074,96098.0,96088.0,0.3748345]
[1739841182686,0.9074,96098.0,96088.0,0.1667]
[1739841182880,1.1155136,96098.0,96088.0,0.1667]
[1739841183790,1.14091441,96098.0,96088.0,0.1667]
[1739841184386,1.14091441,96098.0,96088.0,0.1697]
[1739841185090,1.14091441,96098.0,96088.0,0.1677]
[1739841186080,0.93280081,96098.0,96095.0,0.3608]
[1739841187088,0.9074,96098.0,96095.0,0.3608]
[1739841187283,0.9074,96098.0,96096.0,0.2081154]
[1739841187483,0.00015608,96103.0,96096.0,0.2081154]
[1739841187699,0.001,96098.0,96096.0,0.2081154]
[1739841188088,0.00015608,96103.0,96096.0,0.2081154]
[1739841188396,0.001,96098.0,96096.0,0.2081154]
[1739841188792,0.00015608,96103.0,96096.0,0.2111154]
[1739841190096,0.00015608,96103.0,96097.0,0.2081136]
[1739841190796,0.00015608,96103.0,96095.0,0.3608]
[1739841190996,0.00015608,96103.0,96100.0,0.2081083]
[1739841191295,0.0574,96118.0,96096.0,0.002]
[1739841191296,0.3608,96131.0,96102.0,0.3608]
[1739841191484,0.93579236,96125.0,96121.0,0.3608]
[1739841191684,0.93491235,96125.0,96121.0,0.3608]
[1739841193398,0.3608,96122.0,96113.0,0.00015608]
[1739841193591,0.3608,96114.0,96113.0,0.00015608]
[1739841194292,0.3608,96114.0,96093.0,0.0602]
[1739841194497,0.09139486,96107.0,96093.0,0.0602]
[1739841194796,0.3608,96098.0,96085.0,0.1156]
[1739841194991,0.111,96097.0,96085.0,0.1156]
[1739841195202,0.111,96097.0,96085.0,0.0587]
[1739841195404,0.66030776,96098.0,96084.0,0.3608]
[1739841196887,0.66030776,96098.0,96085.0,0.003]
[1739841197489,0.66030776,96098.0,96084.0,0.3608]
[1739841197490,0.66030776,96098.0,96084.0,0.3618]
[1739841197686,0.45219486,96098.0,96084.0,0.3618]
[1739841198098,0.09139486,96098.0,96084.0,0.3608]
[1739841198592,0.09139486,96098.0,96084.0,0.3618]
[1739841198998,0.09139486,96100.0,96084.0,0.3618]
[1739841199992,0.09139486,96094.0,96084.0,0.3618]
[1739841200290,0.0554,96093.0,96084.0,0.3618]
[1739841200495,0.11064,96092.0,96084.0,0.3618]
[1739841200998,0.11064,96092.0,96085.0,0.208141]
[1739841201198,0.0554,96093.0,96085.0,0.208141]
[1739841201590,0.00015608,96101.0,96092.0,0.3608]
[1739841203994,0.00215608,96101.0,96085.0,0.2081396]
[1739841204397,0.00015608,96101.0,96085.0,0.2081396]
[1739841204596,0.00115608,96101.0,96085.0,0.2081396]
[1739841205604,0.3608,96094.0,96084.0,0.3608]
[1739841205804,0.11032,96093.0,96084.0,0.3608]
[1739841206194,0.0576,96092.0,96085.0,0.002]
[1739841206896,0.0576,96092.0,96084.0,0.3618]
[1739841207306,0.0576,96092.0,96085.0,0.001]
[1739841207604,0.0825584,96092.0,96085.0,0.001]
[1739841207804,0.1391584,96092.0,96085.0,0.001]
[1739841210001,0.0563,96091.0,96085.0,0.001]
[1739841212109,0.2644297,96091.0,96084.0,0.31905926]
[1739841212299,0.2644297,96091.0,96085.0,0.001]
[1739841213110,0.2081382,96087.0,96085.0,0.001]
[1739841213402,0.3608,96086.0,96085.0,0.001]
[1739841213607,0.47092,96086.0,96085.0,0.001]
[1739841214601,0.47092,96086.0,96081.0,0.00015608]
[1739841214800,0.3608,96086.0,96081.0,0.00015608]
[1739841215204,0.2081447,96084.0,96081.0,9.096e-05]
[1739841216006,0.2081447,96084.0,96081.0,0.00209096]
[1739841216913,0.3608,96086.0,96081.0,0.00209096]
[1739841217216,0.2081475,96083.0,96081.0,0.00209096]
[1739841218916,0.3608,96086.0,96081.0,0.00109096]
[1739841219211,0.3608,96086.0,96081.0,0.20923916]
[1739841219403,0.3608,96086.0,96082.0,0.1633]
[1739841220506,0.96478,96091.0,96082.0,0.1633]
[1739841220706,0.96386,96091.0,96082.0,0.1633]
[1739841221904,0.2081361,96088.0,96082.0,0.1633]
[1739841222103,0.2081361,96088.0,96082.0,0.1098]
[1739841222614,0.96482001,96091.0,96082.0,0.1098]
[1739841222810,0.96386,96091.0,96082.0,0.1098]
[1739841223115,0.96386,96091.0,96082.0,0.0556]
[1739841223613,0.2081417,96085.0,96082.0,0.0556]
[1739841224206,0.2081437,96084.0,96082.0,0.0556]
[1739841224402,0.2081308,96090.0,96082.0,0.0556]
[1739841224612,0.208133,96089.0,96082.0,0.0556]
[1739841224810,0.96478,96091.0,96082.0,0.0556]
[1739841225112,0.90756,96091.0,96082.0,0.0556]
[1739841225310,0.10944,96090.0,96082.0,0.0556]
[1739841225509,0.10944,96090.0,96082.0,0.0546]
[1739841225712,0.10944,96090.0,96082.0,0.0556]
[1739841226609,0.2081332,96089.0,96082.0,0.0546]
[1739841226816,0.208138,96087.0,96082.0,0.0556]
[1739841227916,0.2081398,96086.0,96082.0,0.0556]
[1739841228814,0.2081398,96086.0,96082.0,0.0546]
[1739841229011,0.2081398,96086.0,96082.0,0.0556]
[1739841230708,0.2081398,96086.0,96082.0,0.03346196]
[1739841231108,0.2081424,96085.0,96082.0,0.03346196]
[1739841231707,0.09139486,96095.0,96082.0,0.03346196]
[1739841232315,0.33112675,96095.0,96082.0,0.03346196]
[1739841233505,0.12300655,96095.0,96082.0,0.03346196]
[1739841233818,0.2081269,96092.0,96082.0,0.03346196]
[1739841234717,0.2081289,96091.0,96082.0,0.03346196]
[1739841234914,0.12300655,96095.0,96082.0,0.03346196]
[1739841235116,0.2081355,96088.0,96082.0,0.03346196]
[1739841235418,0.11,96087.0,96082.0,0.03246196]
[1739841235721,0.5689426,96085.0,96082.0,0.001]
[1739841236616,0.5689426,96085.0,96081.0,9.096e-05]
[1739841236916,0.5689426,96085.0,96082.0,0.001]
[1739841238210,0.3608,96085.0,96081.0,9.096e-05]
[1739841238410,0.3608,96085.0,96082.0,0.001]
[1739841238615,0.10868,96084.0,96082.0,0.001]
[1739841239422,0.10868,96084.0,96081.0,0.00209096]
[1739841239623,0.3608,96085.0,96081.0,0.00209096]
[1739841239806,0.3608,96085.0,96081.0,9.096e-05]
[1739841240010,0.3608,96085.0,96082.0,0.001]
[1739841240230,0.10868,96084.0,96082.0,0.001]
[1739841241413,0.10868,96084.0,96081.0,9.096e-05]
[1739841241614,0.2081419,96085.0,96081.0,0.00209096]
[1739841242117,0.2081419,96085.0,96082.0,0.001]
[1739841242714,0.2081419,96085.0,96081.0,0.00209096]
[1739841243308,0.2081419,96085.0,96082.0,0.001]
[1739841244823,0.0577,96086.0,96081.0,0.00209096]
[1739841245021,0.0577,96086.0,96081.0,0.36289096]
[1739841245326,0.0577,96086.0,96082.0,0.2081476]
[1739841245716,0.0577,96086.0,96082.0,0.2091476]
[1739841246326,0.0577,96086.0,96082.0,0.2081476]
[1739841246715,0.0577,96086.0,96082.0,0.1365178]
[1739841247324,0.0577,96086.0,96081.0,0.36289096]
[1739841247815,0.0577,96086.0,96082.0,0.001]
[1739841248427,0.0577,96086.0,96081.0,0.36289096]
[1739841248822,0.0577,96086.0,96081.0,0.36089096]
[1739841249022,0.0577,96086.0,96082.0,0.001]
[1739841249425,0.0577,96086.0,96081.0,0.36089096]
[1739841249617,0.0577,96086.0,96081.0,0.36289096]
[1739841251124,0.0577,96086.0,96082.0,0.001]
[1739841251514,0.0577,96086.0,96081.0,0.36089096]
[1739841251730,0.0577,96086.0,96081.0,0.36289096]
[1739841252226,0.0577,96086.0,96082.0,0.001]
[1739841252529,0.3608,96085.0,96082.0,0.001]
[1739841252730,0.2081453,96083.0,96081.0,9.096e-05]
[1739841252920,0.1166,96082.0,96081.0,0.00209096]
[1739841254428,0.1166,96082.0,96081.0,9.096e-05]
[1739841255024,0.1166,96082.0,96073.0,0.3608]
[1739841255328,0.10832,96081.0,96073.0,0.3608]
[1739841257323,0.10832,96081.0,96073.0,0.3648]
[1739841259126,0.10832,96081.0,96074.0,0.1148]
[1739841260529,0.10832,96081.0,96074.0,0.1188]
[1739841262839,0.10832,96081.0,96075.0,0.0604]
[1739841263432,0.10828,96080.0,96075.0,0.0604]
[1739841264131,0.10828,96080.0,96075.0,0.0634]
[1739841264328,0.1166,96082.0,96075.0,0.0634]
[1739841264532,0.10816,96079.0,96075.0,0.0634]
[1739841265328,0.1166,96082.0,96075.0,0.0634]
[1739841265528,0.10808,96078.0,96075.0,0.0634]
[1739841266327,0.1166,96082.0,96075.0,0.0634]
[1739841266537,0.108,96077.0,96075.0,0.0634]
[1739841267539,0.10788,96076.0,96075.0,0.0634]
[1739841267734,0.10788,96076.0,96075.0,0.0604]
[1739841267941,0.10788,96076.0,96075.0,0.0634]
[1739841268424,0.1078,96076.0,96075.0,0.0634]
[1739841269431,0.10776,96077.0,96075.0,0.0634]
[1739841269930,0.3247482,96082.0,96075.0,0.0634]
[1739841270131,0.1166,96082.0,96075.0,0.0634]
[1739841270338,0.10784,96081.0,96075.0,0.0634]
[1739841273242,0.1166,96082.0,96075.0,0.0634]
[1739841273543,0.10756,96081.0,96075.0,0.0634]
[1739841273843,0.2081518,96080.0,96075.0,0.0634]
[1739841274031,0.208155,96079.0,96075.0,0.0634]
[1739841274836,0.208155,96079.0,96075.0,0.003]
[1739841276640,0.1166,96082.0,96075.0,0.003]